fUSD/lending_fUSD_20250207
["ID","MTS","AMOUNT","RATE_DAILY","PERIOD"]
[352114133,1738953050119,-500.0,0.00016438,2]
[352114135,1738953050130,-778.0,0.00016438,2]
[352114136,1738953050140,-500.0,0.00016438,2]
[352114138,1738953050149,-500.0,0.00016438,2]
[352114140,1738953050159,-735.07,0.00016438,2]
[352114141,1738953050168,-1738.56,0.00016438,2]
[352114143,1738953050177,-3945.76,0.00016438,2]
[352114145,1738953050187,-500.0,0.00016438,2]
[352114147,1738953050197,-2688.78,0.00016438,2]
[352114148,1738953050207,-500.0,0.00016438,2]
[352114150,1738953050216,-500.0,0.00016438,2]
[352114152,1738953050225,-500.0,0.00016438,2]
[352114153,1738953050235,-500.0,0.00016438,2]
[352114155,1738953050244,-2905.39,0.00016438,2]
[352114157,1738953050253,-500.0,0.00016438,2]
[352114159,1738953050262,-500.0,0.00016438,2]
[352114160,1738953050272,-3793.59,0.00016438,2]
[352114162,1738953050281,-1379.42,0.00016438,2]
[352114164,1738953050291,-500.0,0.00016438,2]
[352114166,1738953050301,-1412.15,0.00016438,2]
[352114168,1738953050311,-502.31449212,0.00016438,2]
[352114169,1738953050320,-503.58267609,0.00016438,2]
[352114171,1738953050330,-500.0,0.00016438,2]
[352114173,1738953050339,-500.0,0.00016438,2]
[352114175,1738953050349,-500.0,0.00016438,2]
[352114176,1738953050358,-1069.48,0.00016438,2]
[352114178,1738953050367,-500.0,0.00016438,2]
[352114180,1738953050377,-3147.04,0.00016438,2]
[352114182,1738953050387,-155.788179,0.00016438,2]
[352114184,1738953050398,-500.0,0.00016438,2]
[352114185,1738953050407,-500.0,0.00016438,2]
[352114187,1738953050417,-1227.99,0.00016438,2]
[352114189,1738953050427,-1157.51,0.00016438,2]
[352114191,1738953050438,-4377.11,0.00016438,2]
[352114192,1738953050448,-500.0,0.00016438,2]
[352114194,1738953050457,-500.0,0.00016438,2]
[352114196,1738953050467,-2107.01,0.00016438,2]
[352114198,1738953050478,-3381.01,0.00016438,2]
[352114200,1738953050488,-1065.54,0.00016438,2]
[352114201,1738953050497,-500.0,0.00016438,2]
[352114203,1738953050506,-2398.23,0.00016438,2]
[352114205,1738953050516,-1569.39,0.00016438,2]
[352114207,1738953050527,-506.24682546,0.00016438,2]
[352114209,1738953050537,-1689.73,0.00016438,2]
[352114210,1738953050546,-1609.45,0.00016438,2]
[352114212,1738953050555,-806.04,0.00016438,2]
[352114214,1738953050564,-560.68,0.00016438,2]
[352114216,1738953050573,-500.0,0.00016438,2]
[352114218,1738953050582,-503.41090286,0.00016438,2]
[352114219,1738953050592,-337.96790854,0.00016438,2]
[352114221,1738953050601,-500.0,0.00016438,2]
[352114223,1738953050610,-500.0,0.00016438,2]
[352114225,1738953050622,-500.0,0.00016438,2]
[352114228,1738953050640,-275.28835207,0.00016438,2]
[352114230,1738953050656,-500.0,0.00016438,2]
[352114232,1738953050674,-500.0,0.00016438,2]
[352114235,1738953050691,-1981.19,0.00016438,2]
[352114237,1738953050706,-500.0,0.00016438,2]
[352114240,1738953050723,-500.0,0.00016438,2]
[352114242,1738953050741,-4511.68,0.00016438,2]
[352114245,1738953050759,-500.0,0.00016438,2]
[352114247,1738953050776,-397.808405,0.00016438,2]
[352114250,1738953050792,-500.0,0.00016438,2]
[352114252,1738953050809,-500.0,0.00016438,2]
[352114254,1738953050823,-500.0,0.00016438,2]
[352114257,1738953050841,-500.0,0.00016438,2]
[352114259,1738953050853,-500.0,0.00016438,2]
[352114261,1738953050869,-500.0,0.00016438,2]
[352114263,1738953050882,-500.0,0.00016438,2]
[352114265,1738953050897,-1993.02,0.00016438,2]
[352114268,1738953050912,-500.0,0.00016438,2]
[352114270,1738953050927,-3113.59,0.00016438,2]
[352114272,1738953050941,-500.0,0.00016438,2]
[352114274,1738953050955,-500.0,0.00016438,2]
[352114277,1738953050970,-500.0,0.00016438,2]
[352114279,1738953050984,-602.5910526,0.00016438,2]
[352114281,1738953050998,-1656.57,0.00016438,2]
[352114283,1738953051013,-500.0,0.00016438,2]
[352114285,1738953051028,-572.39,0.00016438,2]
[352114288,1738953051043,-1659.64,0.00016438,2]
[352114290,1738953051058,-502.52760125,0.00016438,2]
[352114292,1738953051073,-1244.55,0.00016438,2]
[352114295,1738953051093,-501.84290761,0.00016438,2]
[352114297,1738953051109,-500.0,0.00016438,2]
[352114299,1738953051124,-456.13346,0.00016438,2]
[352114301,1738953051139,-377.10220632,0.00016438,2]
[352114304,1738953051153,-1645.25,0.00016438,2]
[352114306,1738953051167,-500.0,0.00016438,2]
[352114308,1738953051183,-690.72,0.00016438,2]
[352114310,1738953051198,-500.0,0.00016438,2]
[352114312,1738953051212,-3050.6,0.00016438,2]
[352114315,1738953051227,-740.02,0.00016438,2]
[352114317,1738953051242,-908.65,0.00016438,2]
[352114319,1738953051257,-506.52084687,0.00016438,2]
[352114321,1738953051271,-3292.49,0.00016438,2]
[352114324,1738953051288,-500.0,0.00016438,2]
[352114326,1738953051304,-155.948278,0.00016438,2]
[352114328,1738953051318,-718.66,0.00016438,2]
[352114331,1738953051333,-2369.73,0.00016438,2]
[352114332,1738953051348,-505.25474652,0.00016438,2]
[352114333,1738953051362,-1472.44,0.00016438,2]
[352114334,1738953051377,-500.0,0.00016438,2]
[352114335,1738953051394,-500.0,0.00016438,2]
[352114336,1738953051409,-500.0,0.00016438,2]
[352114337,1738953051425,-1140.5,0.00016438,2]
[352114338,1738953051441,-275.7878382,0.00016438,2]
[352114339,1738953051457,-2918.25,0.00016438,2]
[352114340,1738953051472,-500.0,0.00016438,2]
[352114341,1738953051487,-988.08,0.00016438,2]
[352114342,1738953051501,-500.0,0.00016438,2]
[352114343,1738953051516,-3601.45,0.00016438,2]
[352114344,1738953051533,-500.0,0.00016438,2]
[352114346,1738953051548,-500.0,0.00016438,2]
[352114347,1738953051563,-591.64,0.00016438,2]
[352114350,1738953051578,-1041.93,0.00016438,2]
[352114352,1738953051591,-718.8,0.00016438,2]
[352114355,1738953051606,-500.0,0.00016438,2]
[352114358,1738953051621,-5130.98,0.00016438,2]
[352114360,1738953051635,-500.79,0.00016438,2]
[352114363,1738953051650,-3687.72,0.00016438,2]
[352114365,1738953051664,-500.0,0.00016438,2]
[352114368,1738953051678,-502.9,0.00016438,2]
[352114384,1738953051821,-587.89,0.00016438,2]
[352114386,1738953051832,-500.0,0.00016438,2]
[352114388,1738953051841,-500.0,0.00016438,2]
[352114390,1738953051850,-500.0,0.00016438,2]
[352114392,1738953051860,-500.0,0.00016438,2]
[352114394,1738953051869,-500.0,0.00016438,2]
[352114396,1738953051878,-500.0,0.00016438,2]
[352114398,1738953051888,-538.47,0.00016438,2]
[352114400,1738953051897,-500.0,0.00016438,2]
[352114402,1738953051906,-500.0,0.00016438,2]
[352114404,1738953051915,-500.0,0.00016438,2]
[352114406,1738953051924,-500.0,0.00016438,2]
[352114408,1738953051933,-1324.22,0.00016438,2]
[352114410,1738953051942,-500.0,0.00016438,2]
[352114412,1738953051951,-625.67,0.00016438,2]
[352114414,1738953051959,-500.0,0.00016438,2]
[352114416,1738953051968,-500.0,0.00016438,2]
[352114418,1738953051978,-320.797679,0.00016438,2]
[352114420,1738953051987,-500.0,0.00016438,2]
[352114422,1738953051997,-896.75,0.00016438,2]
[352114424,1738953052006,-2083.95,0.00016438,2]
[352114426,1738953052015,-500.0,0.00016438,2]
[352114428,1738953052025,-500.0,0.00016438,2]
[352114430,1738953052034,-500.0,0.00016438,2]
[352114432,1738953052043,-500.0,0.00016438,2]
[352114434,1738953052053,-500.0,0.00016438,2]
[352114436,1738953052062,-1548.66,0.00016438,2]
[352114438,1738953052071,-1722.48,0.00016438,2]
[352114440,1738953052080,-939.8,0.00016438,2]
[352114442,1738953052089,-500.0,0.00016438,2]
[352114444,1738953052099,-500.0,0.00016438,2]
[352114446,1738953052110,-500.0,0.00016438,2]
[352114448,1738953052119,-2652.16,0.00016438,2]
[352114450,1738953052129,-500.0,0.00016438,2]
[352114452,1738953052138,-500.0,0.00016438,2]
[352114454,1738953052147,-2645.94,0.00016438,2]
[352114456,1738953052157,-182.793543,0.00016438,2]
[352114458,1738953052166,-1562.15,0.00016438,2]
[352114460,1738953052175,-500.0,0.00016438,2]
[352114461,1738953052184,-1892.95,0.00016438,2]
[352114464,1738953052193,-1173.62,0.00016438,2]
[352114466,1738953052202,-500.0,0.00016438,2]
[352114468,1738953052212,-1442.94,0.00016438,2]
[352114469,1738953052222,-2072.3,0.00016438,2]
[352114471,1738953052231,-500.0,0.00016438,2]
[352114473,1738953052240,-500.0,0.00016438,2]
[352114475,1738953052249,-558.14790022,0.00016438,2]
[352114477,1738953052259,-500.0,0.00016438,2]
[352114480,1738953052269,-500.0,0.00016438,2]
[352114482,1738953052280,-2172.3,0.00016438,2]
[352114483,1738953052289,-521.41480508,0.00016438,2]
[352114485,1738953052298,-500.0,0.00016438,2]
[352114487,1738953052307,-500.0,0.00016438,2]
[352114489,1738953052317,-500.0,0.00016438,2]
[352114492,1738953052327,-500.0,0.00016438,2]
[352114494,1738953052337,-503.20740844,0.00016438,2]
[352114496,1738953052347,-500.0,0.00016438,2]
[352114498,1738953052356,-500.0,0.00016438,2]
[352114499,1738953052366,-500.0,0.00016438,2]
[352114501,1738953052375,-500.0,0.00016438,2]
[352114503,1738953052385,-500.0,0.00016438,2]
[352114505,1738953052397,-2159.36,0.00016438,2]
[352114507,1738953052407,-1945.02,0.00016438,2]
[352114510,1738953052418,-937.61,0.00016438,2]
[352114512,1738953052435,-525.64,0.00016438,2]
[352114513,1738953052444,-500.0,0.00016438,2]
[352114515,1738953052453,-500.0,0.00016438,2]
[352114517,1738953052462,-500.0,0.00016438,2]
[352114519,1738953052472,-500.0,0.00016438,2]
[352114521,1738953052481,-546.363448,0.00016438,2]
[352114523,1738953052490,-500.0,0.00016438,2]
[352114525,1738953052500,-500.0,0.00016438,2]
[352114527,1738953052509,-500.0,0.00016438,2]
[352114529,1738953052518,-2718.37,0.00016438,2]
[352114531,1738953052530,-709.78,0.00016438,2]
[352114533,1738953052539,-305.82926915,0.00016438,2]
[352114535,1738953052548,-500.0,0.00016438,2]
[352114537,1738953052558,-2057.88,0.00016438,2]
[352114538,1738953052567,-500.0,0.00016438,2]
[352114539,1738953052576,-500.0,0.00016438,2]
[352114540,1738953052585,-500.0,0.00016438,2]
[352114541,1738953052594,-2873.02,0.00016438,2]
[352114542,1738953052603,-595.285055,0.00016438,2]
[352114543,1738953052612,-529.53,0.00016438,2]
[352114544,1738953052621,-529.53,0.00016438,2]
[352114545,1738953052630,-529.53,0.00016438,2]
[352114546,1738953052639,-529.53,0.00016438,2]
[352114547,1738953052648,-500.0,0.00016438,2]
[352114548,1738953052657,-553.44,0.00016438,2]
[352114549,1738953052666,-904.49,0.00016438,2]
[352114550,1738953052675,-500.0,0.00016438,2]
[352114551,1738953052684,-500.0,0.00016438,2]
[352114552,1738953052692,-500.0,0.00016438,2]
[352114553,1738953052702,-954.84,0.00016438,2]
[352114554,1738953052710,-819.377073,0.00016438,2]
[352114555,1738953052719,-500.0,0.00016438,2]
[352114556,1738953052728,-1864.81,0.00016438,2]
[352114557,1738953052739,-854.29,0.00016438,2]
[352114558,1738953052749,-500.0,0.00016438,2]
[352114559,1738953052759,-500.0,0.00016438,2]
[352114560,1738953052768,-1836.8,0.00016438,2]
[352114561,1738953052778,-500.0,0.00016438,2]
[352114562,1738953052787,-500.0,0.00016438,2]
[352114563,1738953052796,-500.0,0.00016438,2]
[352114564,1738953052805,-500.0,0.00016438,2]
[352114565,1738953052814,-1175.78,0.00016438,2]
[352114567,1738953052823,-2402.86,0.00016438,2]
[352114569,1738953052833,-1786.5,0.00016438,2]
[352114571,1738953052842,-1563.89,0.00016438,2]
[352114573,1738953052851,-4306.94,0.00016438,2]
[352114575,1738953052860,-2827.77,0.00016438,2]
[352114577,1738953052869,-2480.24,0.00016438,2]
[352114579,1738953052879,-500.0,0.00016438,2]
[352114580,1738953052888,-442.25225934,0.00016438,2]
[352114581,1738953052897,-500.0,0.00016438,2]
[352114582,1738953052906,-4153.69,0.00016438,2]
[352114583,1738953052915,-1026.61,0.00016438,2]
[352114584,1738953052924,-500.0,0.00016438,2]
[352114585,1738953052933,-500.0,0.00016438,2]
[352114586,1738953052943,-934.56,0.00016438,2]
[352114587,1738953052952,-500.0,0.00016438,2]
[352114588,1738953052961,-2506.05,0.00016438,2]
[352114589,1738953052970,-500.0,0.00016438,2]
[352114590,1738953052979,-722.313308,0.00016438,2]
[352114591,1738953052988,-501.00893061,0.00016438,2]
[352114592,1738953052997,-500.0,0.00016438,2]
[352114593,1738953053007,-500.0,0.00016438,2]
[352114594,1738953053017,-4028.97,0.00016438,2]
[352114595,1738953053027,-503.15,0.00016438,2]
[352114596,1738953053036,-500.0,0.00016438,2]
[352114598,1738953053045,-500.0,0.00016438,2]
[352114600,1738953053054,-500.0,0.00016438,2]
[352114602,1738953053063,-500.0,0.00016438,2]
[352114604,1738953053072,-500.0,0.00016438,2]
[352114606,1738953053081,-500.27945313,0.00016438,2]
[352114607,1738953053091,-500.0,0.00016438,2]
[352114609,1738953053100,-500.0,0.00016438,2]
[352114610,1738953053109,-500.0,0.00016438,2]
[352114611,1738953053118,-500.0,0.00016438,2]
[352114612,1738953053127,-3137.7514855,0.00016438,2]
[352114613,1738953053136,-1727.57,0.00016438,2]
[352114614,1738953053146,-1880.34,0.00016438,2]
[352114616,1738953053155,-500.0,0.00016438,2]
[352114618,1738953053164,-500.16136884,0.00016438,2]
[352114620,1738953053174,-500.0,0.00016438,2]
[352114622,1738953053183,-7029.12,0.00016438,2]
[352114624,1738953053193,-500.0,0.00016438,2]
[352114626,1738953053202,-500.0,0.00016438,2]
[352114628,1738953053211,-500.0,0.00016438,2]
[352114630,1738953053220,-500.0,0.00016438,2]
[352114632,1738953053230,-500.0,0.00016438,2]
[352114634,1738953053239,-500.0,0.00016438,2]
[352114647,1738953053350,-500.0,0.00016438,2]
[352114649,1738953053360,-500.0,0.00016438,2]
[352114651,1738953053370,-536.37,0.00016438,2]
[352114653,1738953053379,-1429.01,0.00016438,2]
[352114655,1738953053389,-500.0,0.00016438,2]
[352114657,1738953053403,-1269.87,0.00016438,2]
[352114659,1738953053412,-500.0,0.00016438,2]
[352114661,1738953053421,-500.0,0.00016438,2]
[352114662,1738953053431,-500.0,0.00016438,2]
[352114665,1738953053440,-500.0,0.00016438,2]
[352114666,1738953053450,-500.0,0.00016438,2]
[352114668,1738953053459,-500.0,0.00016438,2]
[352114670,1738953053468,-500.201399,0.00016438,2]
[352114672,1738953053478,-500.0,0.00016438,2]
[352114674,1738953053488,-500.0,0.00016438,2]
[352114675,1738953053497,-500.0,0.00016438,2]
[352114676,1738953053506,-590.97326349,0.00016438,2]
[352114679,1738953053516,-500.0,0.00016438,2]
[352114681,1738953053527,-500.0,0.00016438,2]
[352114683,1738953053536,-1156.02,0.00016438,2]
[352114685,1738953053546,-500.0,0.00016438,2]
[352114687,1738953053556,-371.49,0.00016438,2]
[352114689,1738953053567,-324.42725831,0.0001644,2]
[352114691,1738953053576,-324.42725831,0.0001644,2]
[352114693,1738953053585,-324.42725831,0.0001644,2]
[352114695,1738953053594,-324.42725831,0.0001644,2]
[352114696,1738953053603,-324.42725831,0.0001644,2]
[352114698,1738953053612,-324.42725831,0.0001644,2]
[352114700,1738953053622,-324.42725831,0.0001644,2]
[352114701,1738953053631,-324.42725831,0.0001644,2]
[352114702,1738953053641,-324.42725831,0.0001644,2]
[352114703,1738953053650,-324.42725831,0.0001644,2]
[352114704,1738953053659,-324.42725831,0.0001644,2]
[352114705,1738953053669,-324.42725831,0.0001644,2]
[352114706,1738953053678,-324.42725831,0.0001644,2]
[352114707,1738953053687,-324.42725831,0.0001644,2]
[352114708,1738953053696,-324.42725831,0.0001644,2]
[352114709,1738953053705,-324.42725831,0.0001644,2]
[352114710,1738953053714,-324.42725831,0.0001644,2]
[352114711,1738953053724,-324.42725831,0.0001644,2]
[352114712,1738953053733,-324.42725831,0.0001644,2]
[352114713,1738953053742,-324.42,0.0001644,2]
[352114714,1738953053752,-324.49260294,0.0001644,2]
[352114715,1738953053761,-324.49260294,0.0001644,2]
[352114716,1738953053770,-324.49260294,0.0001644,2]
[352114717,1738953053783,-324.49260294,0.0001644,2]
[352114718,1738953053792,-324.49260294,0.0001644,2]
[352114719,1738953053802,-324.49260294,0.0001644,2]
[352114720,1738953053811,-324.49260294,0.0001644,2]
[352114721,1738953053821,-324.49260294,0.0001644,2]
[352114722,1738953053832,-324.49260294,0.0001644,2]
[352114723,1738953053842,-324.49260294,0.0001644,2]
[352114724,1738953053851,-324.49260294,0.0001644,2]
[352114725,1738953053860,-324.49260294,0.0001644,2]
[352114726,1738953053869,-324.49260294,0.0001644,2]
[352114727,1738953053878,-324.49260294,0.0001644,2]
[352114728,1738953053887,-324.49260294,0.0001644,2]
[352114729,1738953053897,-324.49260294,0.0001644,2]
[352114730,1738953053906,-324.49260294,0.0001644,2]
[352114731,1738953053915,-324.49260294,0.0001644,2]
[352114732,1738953053924,-324.49260294,0.0001644,2]
[352114733,1738953053934,-324.49,0.0001644,2]
[352114734,1738953053943,-178.34246589,0.0001644,2]
[352114735,1738953053953,-178.34246589,0.0001644,2]
[352114736,1738953053962,-178.34246589,0.0001644,2]
[352114737,1738953053971,-178.34246589,0.0001644,2]
[352114738,1738953053980,-178.34246589,0.0001644,2]
[352114739,1738953053990,-178.34246589,0.0001644,2]
[352114740,1738953053999,-178.34246589,0.0001644,2]
[352114741,1738953054008,-178.34246589,0.0001644,2]
[352114742,1738953054017,-178.34246589,0.0001644,2]
[352114743,1738953054027,-178.34246589,0.0001644,2]
[352114744,1738953054036,-178.34246589,0.0001644,2]
[352114745,1738953054047,-178.34246589,0.0001644,2]
[352114746,1738953054056,-178.34246589,0.0001644,2]
[352114747,1738953054065,-178.34246589,0.0001644,2]
[352114748,1738953054074,-178.34246589,0.0001644,2]
[352114749,1738953054083,-178.34246589,0.0001644,2]
[352114750,1738953054092,-178.34246589,0.0001644,2]
[352114752,1738953054102,-178.34246589,0.0001644,2]
[352114754,1738953054112,-178.34246589,0.0001644,2]
[352114756,1738953054122,-178.34,0.0001644,2]
[352114758,1738953054132,-169.9216597,0.0001645,2]
[352114760,1738953054141,-3571.4950886,0.00016454,10]
[352114762,1738953054151,-500.0,0.00016473,2]
[352114763,1738953054160,-500.0,0.00016473,2]
[352114764,1738953054169,-500.0,0.00016473,2]
[352114765,1738953054178,-500.0,0.00016473,2]
[352114766,1738953054187,-169.9216597,0.00016475,2]
[352114767,1738953054196,-150.0,0.00016494,2]
[352114768,1738953054205,-225187.02518351,0.00016498,3]
[352114769,1738953054215,-710975.69024551,0.00016498,3]
[352114770,1738953054224,-53462.74645242,0.00016498,2]
[352114771,1738953054233,-223834.28860943,0.00016498,3]
[352114772,1738953054241,-2000.0,0.00016499,2]
[352114773,1738953054251,-2000.0,0.00016499,2]
[352114774,1738953054260,-2000.0,0.00016499,2]
[352114775,1738953054269,-2000.0,0.00016499,2]
[352114776,1738953054279,-2000.0,0.00016499,2]
[352114777,1738953054289,-2000.0,0.00016499,2]
[352114778,1738953054299,-2000.0,0.00016499,2]
[352114779,1738953054308,-574.5,0.00016499,2]
[352114780,1738953054318,-1000.0,0.00016499,2]
[352114781,1738953054327,-523.36604226,0.00016499,2]
[352114782,1738953054336,-999.0,0.00016499,2]
[352114783,1738953054345,-529.53,0.00016499,2]
[352114784,1738953054355,-529.53,0.00016499,2]
[352114785,1738953054364,-529.53,0.00016499,2]
[352114786,1738953054373,-529.53,0.00016499,2]
[352114787,1738953054383,-529.53,0.00016499,2]
[352114788,1738953054397,-529.53,0.00016499,2]
[352114789,1738953054407,-529.53,0.00016499,2]
[352114791,1738953054416,-529.53,0.00016499,2]
[352114793,1738953054426,-529.53,0.00016499,2]
[352114795,1738953054437,-529.53,0.00016499,2]
[352114797,1738953054447,-529.53,0.00016499,2]
[352114799,1738953054457,-529.53,0.00016499,2]
[352114801,1738953054468,-529.53,0.00016499,2]
[352114803,1738953054477,-529.53,0.00016499,2]
[352114805,1738953054487,-529.53,0.00016499,2]
[352114807,1738953054496,-529.53,0.00016499,2]
[352114809,1738953054506,-529.53,0.00016499,2]
[352114811,1738953054515,-529.53,0.00016499,2]
[352114813,1738953054525,-529.53,0.00016499,2]
[352114815,1738953054537,-529.54612517,0.00016499,2]
[352114817,1738953054547,-4060252.51532633,0.000165,5]
[352114819,1738953054556,-7383894.23,0.000165,5]
[352114821,1738953054566,-346093.65,0.000165,5]
[352114823,1738953054575,-37565.0,0.000165,2]
[352114825,1738953054584,-277016.09,0.000165,15]
[352114827,1738953054593,-500.0,0.000165,2]
[352114829,1738953054602,-1045.88623453,0.000165,5]
[352114831,1738953054611,-151.0,0.000165,2]
[352114833,1738953054620,-151.0,0.000165,2]
[352114835,1738953054630,-152.868327,0.000165,2]
[352114837,1738953054639,-842.19877,0.000165,2]
[352114839,1738953054647,-842.19877,0.000165,2]
[352114841,1738953054656,-151.0,0.000165,2]
[352114843,1738953054665,-151.0,0.000165,2]
[352114845,1738953054675,-151.0,0.000165,2]
[352114847,1738953054685,-151.0,0.000165,2]
[352114849,1738953054694,-151.0,0.000165,2]
[352114851,1738953054703,-151.0,0.000165,2]
[352114853,1738953054714,-151.0,0.000165,2]
[352114855,1738953054724,-151.0,0.000165,2]
[352114857,1738953054734,-151.0,0.000165,2]
[352114859,1738953054744,-151.0,0.000165,2]
[352114861,1738953054753,-151.0,0.000165,2]
[352114863,1738953054763,-244.84180271,0.000165,2]
[352114865,1738953054773,-50000.0,0.000165,5]
[352114867,1738953054784,-675.12,0.000165,2]
[352114868,1738953054794,-366.0,0.000165,2]
[352114869,1738953054803,-622.0,0.000165,2]
[352114870,1738953054812,-231.0,0.000165,2]
[352114871,1738953054822,-4000.0,0.000165,2]
[352114872,1738953054831,-2997.269093,0.000165,2]
[352114873,1738953054840,-2997.269093,0.000165,2]
[352114874,1738953054850,-1670.0,0.000165,2]
[352114875,1738953054859,-467.230511,0.000165,2]
[352114876,1738953054869,-467.230511,0.000165,2]
[352114877,1738953054879,-151.0,0.000165,2]
[352114878,1738953054888,-151.0,0.000165,2]
[352114879,1738953054898,-660.355421,0.000165,2]
[352114880,1738953054908,-660.355421,0.000165,2]
[352114881,1738953054917,-660.355421,0.000165,2]
[352114882,1738953054926,-660.355421,0.000165,2]
[352114883,1738953054936,-150.0,0.00016516,2]
[352114884,1738953054946,-150.0,0.00016518,2]
[352114885,1738953054955,-150.0,0.00016525,2]
[352114886,1738953054965,-1670.0,0.00016527,2]
[352114887,1738953054974,-150.0,0.00016529,2]
[352114888,1738953054984,-150.0,0.00016543,2]
[352114889,1738953054994,-150.0,0.00016551,2]
[352114890,1738953055003,-1670.0,0.00016555,2]
[352114891,1738953055013,-150.0,0.00016559,2]
[352114892,1738953055023,-150.0,0.00016572,2]
[352114893,1738953055033,-316.06270134,0.00016573,2]
[352114894,1738953055043,-500.0,0.00016573,2]
[352114895,1738953055053,-500.0,0.00016573,2]
[352114896,1738953055063,-500.0,0.00016575,2]
[352114897,1738953055073,-500.0,0.00016575,2]
[352114898,1738953055082,-504.76782601,0.00016575,2]
[352114899,1738953055092,-502.97527938,0.00016575,2]
[352114900,1738953055101,-1267.888942,0.00016575,2]
[352114901,1738953055112,-543.47,0.00016575,2]
[352114902,1738953055121,-500.0,0.00016575,2]
[352114903,1738953055131,-500.0,0.00016575,2]
[352114904,1738953055140,-500.0,0.00016575,2]
[352114905,1738953055149,-500.0,0.00016575,2]
[352114906,1738953055159,-500.0,0.00016575,2]
[352114907,1738953055168,-500.0,0.00016575,2]
[352114908,1738953055178,-500.0,0.00016575,2]
[352114909,1738953055187,-500.0,0.00016575,2]
[352114910,1738953055197,-500.0,0.00016575,2]
[352114911,1738953055207,-202.05757384,0.00016575,2]
[352114912,1738953055218,-500.0,0.00016575,2]
[352114913,1738953055227,-500.0,0.00016575,2]
[352114914,1738953055237,-500.0,0.00016575,2]
[352114915,1738953055247,-500.0,0.00016575,2]
[352114916,1738953055256,-500.0,0.00016575,2]
[352114917,1738953055266,-500.0,0.00016575,2]
[352114918,1738953055275,-500.0,0.00016575,2]
[352114919,1738953055285,-500.0,0.00016575,2]
[352114920,1738953055295,-500.0,0.00016575,2]
[352114921,1738953055304,-500.0,0.00016575,2]
[352114922,1738953055315,-500.0,0.00016575,2]
[352114923,1738953055325,-500.0,0.00016575,2]
[352114924,1738953055335,-500.0,0.00016575,2]
[352114925,1738953055345,-500.0,0.00016575,2]
[352114926,1738953055355,-500.0,0.00016575,2]
[352114927,1738953055365,-500.0,0.00016575,2]
[352114928,1738953055375,-500.0,0.00016575,2]
[352114929,1738953055385,-500.0,0.00016575,2]
[352114930,1738953055395,-500.0,0.00016575,7]
[352114931,1738953055515,-500.0,0.00016575,2]
[352114932,1738953055525,-500.0,0.00016575,2]
[352114933,1738953055535,-500.0,0.00016575,2]
[352114934,1738953055545,-626.97397292,0.00016575,2]
[352114935,1738953055555,-500.0,0.00016575,2]
[352114936,1738953055565,-500.0,0.00016575,2]
[352114937,1738953055575,-500.0,0.00016575,2]
[352114938,1738953055584,-500.0,0.00016575,2]
[352114939,1738953055594,-500.0,0.00016575,2]
[352114940,1738953055604,-500.0,0.00016575,2]
[352114941,1738953055613,-500.0,0.00016575,2]
[352114942,1738953055623,-500.0,0.00016575,2]